fUSD/lending_fUSD_20250526
["ID","MTS","AMOUNT","RATE_DAILY","PERIOD"]
[362439433,1748293832022,-670.12633128,0.00031478,2]
[362439434,1748293832031,-169.45,0.00031478,2]
[362439435,1748293832040,-208.72885455,0.000315,25]
[362439436,1748293832049,-500.0,0.00031595,7]
[362439437,1748293832059,-200.0,0.00031675,2]
[362439438,1748293832068,-150.0,0.00031781,2]
[362439439,1748293832077,-321.94,0.00031799,2]
[362439441,1748293832087,-221.92,0.00031848,2]
[362439443,1748293832096,-151.6,0.00031848,2]
[362439445,1748293832105,-158.90314172,0.0003186,2]
[362439447,1748293832116,-520.28391676,0.0003186,2]
[362439449,1748293832127,-1101.14658427,0.0003186,2]
[362439452,1748293832138,-3056.89951525,0.0003186,2]
[362439456,1748293832156,-162.766842,0.0003186,2]
[362439459,1748293832165,-151.0,0.00031861,2]
[362439462,1748293832175,-156.0,0.00031861,2]
[362439465,1748293832184,-743.78759815,0.00031861,2]
[362439466,1748293832194,-154.01,0.0003188,2]
[362439468,1748293832202,-6584.58049836,0.0003188,2]
[362439471,1748293832214,-3240.4000002,0.0003188,2]
[362439473,1748293832225,-5089.06950144,0.0003188,2]
[362439475,1748293832234,-491.313441,0.00031889,12]
[362439477,1748293832243,-165.0,0.00031973,14]
[362439479,1748293832252,-170.26,0.00032055,2]
[362439481,1748293832261,-103.35705756,0.00032055,2]
[362439483,1748293832272,-66.90294244,0.00032055,2]
[362439485,1748293832281,-170.26,0.00032055,2]
[362439487,1748293832290,-170.26,0.00032055,2]
[362439488,1748293832299,-143.57413457,0.00032055,2]
[362439491,1748293832310,-6.42586543,0.00032055,2]
[362439493,1748293832319,-170.26,0.00032078,2]
[362439495,1748293832329,-170.26,0.00032078,2]
[362439497,1748293832338,-162.96,0.00032078,2]
[362439499,1748293832347,-225.97,0.00032078,2]
[362439500,1748293832356,-170.26,0.00032078,2]
[362439503,1748293832365,-321.94,0.00032101,30]
[362439505,1748293832375,-321.94,0.00032101,30]
[362439507,1748293832385,-321.94,0.00032101,30]
[362439509,1748293832395,-321.94,0.00032101,30]
[362439511,1748293832404,-321.94,0.00032101,30]
[362439512,1748293832414,-321.94,0.00032101,30]
[362439514,1748293832423,-321.94,0.00032101,30]
[362439516,1748293832432,-1365.82237468,0.000323,2]
[362439518,1748293832441,-170.26,0.000323,2]
[362439520,1748293832450,-150.0,0.00032329,2]
[362439522,1748293832460,-150.0,0.00032329,2]
[362439524,1748293832469,-1032.495,0.00032379,32]
[362439526,1748293832478,-4000.0,0.0003254,2]
[362439528,1748293832487,-500.0,0.00032656,2]
[362439530,1748293832496,-593.7163,0.00032656,2]
[362439532,1748293832506,-4215.20104826,0.00032656,2]
[362439534,1748293832515,-215.0738,0.00032662,2]
[362439536,1748293832524,-1734.07035556,0.0003267,2]
[362439538,1748293832533,-237.0,0.000327,2]
[362439540,1748293832543,-375.0,0.000327,2]
[362439542,1748293832553,-4215.20104822,0.00032705,2]
[362439544,1748293832564,-159.38370429,0.00032736,2]
[362439546,1748293832574,-290.51918405,0.00032745,15]
[362439548,1748293832583,-1584.27144786,0.00032745,2]
[362439550,1748293832593,-1259.72534894,0.00032751,6]
[362439552,1748293832602,-393.1806754,0.00032755,2]
[362439554,1748293832611,-4215.20104822,0.00032755,2]
[362439556,1748293832620,-207024.8929,0.00032756,2]
[362439558,1748293832631,-1000.0,0.00032756,2]
[362439560,1748293832640,-5000.0,0.00032756,2]
[362439562,1748293832649,-1259.72534894,0.00032759,6]
[362439564,1748293832659,-181.38295405,0.00032762,4]
[362439566,1748293832668,-273.0799,0.00032766,10]
[362439568,1748293832678,-1259.72534894,0.00032766,6]
[362439569,1748293832687,-1584.27144783,0.00032788,2]
[362439572,1748293832697,-150.0,0.000328,2]
[362439573,1748293832707,-4215.20104822,0.00032804,2]
[362439575,1748293832716,-1584.27144783,0.00032831,2]
[362439577,1748293832729,-78607.3125928,0.00032835,2]
[362439579,1748293832738,-13101.2187655,0.00032836,2]
[362439581,1748293832748,-4367.07292182,0.00032841,2]
[362439583,1748293832757,-613.57454506,0.00032845,2]
[362439585,1748293832768,-151.73796112,0.00032845,2]
[362439587,1748293832778,-500.0,0.00032845,2]
[362439588,1748293832788,-78607.3125928,0.00032845,2]
[362439590,1748293832797,-42283.9534088,0.00032845,2]
[362439592,1748293832808,-227.33238245,0.00032845,3]
[362439594,1748293832817,-167111.42823694,0.00032845,3]
[362439596,1748293832826,-37612.10052205,0.00032846,2]
[362439598,1748293832843,-411.67459675,0.00032846,2]
[362439600,1748293832854,-2598.47776514,0.00032846,2]
[362440014,1748293837538,-161.80806909,0.00032753,2]
[362440016,1748293837548,-23774.59292463,0.00032846,2]
[362440020,1748293837573,-1109.24801873,0.00032846,2]
[362440022,1748293837582,-2801.11479272,0.00032846,2]
[362440024,1748293837594,-1356.55,0.00032846,2]
[362440029,1748293837630,-1247.05674392,0.00032846,2]
[362440036,1748293837688,-184873.06880236,0.00032846,2]
[362440038,1748293837698,-150.0,0.00032851,2]
[362440040,1748293837708,-54539.5972638,0.00032853,2]
[362440197,1748293839744,-8886.3328493,0.00032853,2]
[362440199,1748293839755,-4215.20104822,0.00032853,2]
[362440201,1748293839764,-249.0,0.00032855,5]
[362440202,1748293839774,-211419.767044,0.00032856,2]
[362440203,1748293839783,-1378.34969682,0.00032856,2]
[362440204,1748293839795,-19763.62700758,0.00032856,2]
[362440205,1748293839805,-63425.9301131,0.00032863,2]
[362440206,1748293839815,-151.0,0.00032863,7]
[362440207,1748293839823,-151.0,0.00032863,7]
[362440208,1748293839832,-151.0,0.00032863,7]
[362440209,1748293839843,-151.0,0.00032863,7]
[362440210,1748293839852,-21141.9767044,0.00032866,2]
[362440211,1748293839862,-155.54,0.00032866,2]
[362440212,1748293839871,-151.0,0.00032866,7]
[362440213,1748293839880,-171.084706,0.00032866,7]
[362440214,1748293839890,-156.376787,0.00032866,7]
[362440215,1748293839900,-151.0,0.00032866,7]
[362440216,1748293839909,-151.0,0.00032866,7]
[362440217,1748293839919,-151.0,0.00032866,7]
[362440218,1748293839929,-151.0,0.00032866,7]
[362440219,1748293839938,-151.0,0.00032866,7]
[362440220,1748293839947,-151.0,0.00032866,7]
[362440221,1748293839957,-151.0,0.00032866,7]
[362440222,1748293839967,-151.822226,0.00032866,7]
[362440223,1748293839976,-151.0,0.00032866,7]
[362440224,1748293839985,-151.0,0.00032866,7]
[362440225,1748293839994,-151.0,0.00032866,7]
[362440226,1748293840004,-151.0,0.00032866,7]
[362440227,1748293840013,-151.0,0.00032866,7]
[362440228,1748293840022,-151.0,0.00032866,7]
[362440229,1748293840031,-151.0,0.00032866,7]
[362440230,1748293840041,-151.0,0.00032866,7]
[362440231,1748293840050,-151.0,0.00032866,7]
[362440232,1748293840059,-151.0,0.00032866,7]
[362440233,1748293840068,-152.648324,0.00032866,7]
[362440234,1748293840078,-151.0,0.00032866,7]
[362440235,1748293840087,-153.487451,0.00032866,7]
[362440236,1748293840096,-151.0,0.00032866,7]
[362440237,1748293840105,-151.0,0.00032866,7]
[362440238,1748293840114,-150.0,0.00032866,2]
[362440239,1748293840123,-151.0,0.00032866,7]
[362440240,1748293840133,-151.0,0.00032866,7]
[362440241,1748293840142,-151.0,0.00032866,7]
[362440242,1748293840151,-151.0,0.00032866,7]
[362440243,1748293840161,-151.0,0.00032866,7]
[362440244,1748293840170,-151.0,0.00032866,7]
[362440246,1748293840179,-151.0,0.00032866,7]
[362440248,1748293840189,-151.0,0.00032866,7]
[362440250,1748293840199,-151.0,0.00032866,7]
[362440252,1748293840208,-151.0,0.00032866,7]
[362440254,1748293840217,-151.0,0.00032866,7]
[362440256,1748293840227,-151.0,0.00032866,7]
[362440258,1748293840236,-151.0,0.00032866,7]
[362440260,1748293840246,-151.0,0.00032866,7]
[362440262,1748293840255,-295.08975,0.00032866,7]
[362440264,1748293840264,-151.0,0.00032866,7]
[362440266,1748293840273,-151.0,0.00032866,7]
[362440268,1748293840282,-151.0,0.00032866,7]
[362440269,1748293840291,-151.0,0.00032866,7]
[362440270,1748293840300,-151.0,0.00032866,7]
[362440271,1748293840309,-151.0,0.00032866,7]
[362440272,1748293840318,-151.0,0.00032866,7]
[362440273,1748293840327,-152.310134,0.00032866,7]
[362440274,1748293840337,-151.0,0.00032866,7]
[362440275,1748293840346,-151.590186,0.00032866,7]
[362440276,1748293840355,-151.0,0.00032866,7]
[362440277,1748293840365,-151.0,0.00032866,7]
[362440278,1748293840374,-151.0,0.00032866,7]
[362440279,1748293840384,-151.0,0.00032866,7]
[362440280,1748293840393,-151.0,0.00032866,7]
[362440281,1748293840402,-151.0,0.00032866,7]
[362440282,1748293840411,-151.0,0.00032866,7]
[362440283,1748293840420,-151.0,0.00032866,7]
[362440284,1748293840430,-151.0,0.00032866,7]
[362440285,1748293840439,-167.199631,0.00032866,7]
[362440286,1748293840448,-151.0,0.00032866,7]
[362440287,1748293840458,-285.212805,0.00032866,7]
[362440288,1748293840467,-151.0,0.00032866,7]
[362440289,1748293840477,-151.0,0.00032866,7]
[362440290,1748293840486,-151.0,0.00032866,7]
[362440291,1748293840496,-151.0,0.00032866,7]
[362440292,1748293840506,-151.0,0.00032866,7]
[362440293,1748293840515,-151.0,0.00032866,7]
[362440294,1748293840524,-151.0,0.00032866,7]
[362440295,1748293840534,-151.0,0.00032866,7]
[362440296,1748293840544,-155.259932,0.00032866,7]
[362440297,1748293840554,-151.0,0.00032866,7]
[362440298,1748293840563,-210.777285,0.00032866,7]
[362440299,1748293840572,-151.0,0.00032866,7]
[362440300,1748293840582,-173.849719,0.00032866,7]
[362440301,1748293840592,-151.0,0.00032866,7]
[362440302,1748293840602,-151.0,0.00032866,7]
[362440303,1748293840611,-151.0,0.00032866,7]
[362440304,1748293840621,-151.0,0.00032866,7]
[362440305,1748293840633,-151.0,0.00032866,7]
[362440306,1748293840643,-154.059749,0.00032866,7]
[362440307,1748293840653,-151.0,0.00032866,7]
[362440308,1748293840663,-151.0,0.00032866,7]
[362440309,1748293840673,-151.0,0.00032866,7]
[362440310,1748293840682,-151.0,0.00032866,7]
[362440311,1748293840692,-151.0,0.00032866,7]
[362440312,1748293840702,-151.0,0.00032866,7]
[362440313,1748293840712,-151.0,0.00032866,7]
[362440314,1748293840722,-331.593553,0.00032866,7]
[362440315,1748293840735,-331.593553,0.00032866,7]
[362440316,1748293840746,-331.593553,0.00032866,7]
[362440317,1748293840756,-331.593553,0.00032866,7]
[362440318,1748293840765,-151.0,0.00032866,7]
[362440319,1748293840774,-151.0,0.00032866,7]
[362440320,1748293840783,-151.0,0.00032866,7]
[362440321,1748293840792,-151.0,0.00032866,7]
[362440322,1748293840801,-151.0,0.00032866,7]
[362440323,1748293840811,-192.106564,0.00032866,7]
[362440324,1748293840821,-500.0,0.00032873,5]
[362440325,1748293840830,-500.0,0.00032873,5]
[362440326,1748293840839,-500.0,0.00032873,5]
[362440327,1748293840849,-2226.690384,0.00032873,2]
[362440328,1748293840859,-103049.3323938,0.00032873,2]
[362440329,1748293840868,-10491.1350432,0.00032873,2]
[362440330,1748293840879,-1382.4612084,0.00032873,2]
[362440331,1748293840888,-24391.7842022,0.00032873,2]
[362440332,1748293840897,-1584.27144783,0.00032873,2]
[362440333,1748293840907,-177.97,0.00032875,2]
[362440334,1748293840916,-154.01,0.00032876,2]
[362440335,1748293840925,-5731.1838885,0.00032876,5]
[362440336,1748293840935,-420.0,0.00032876,2]
[362440337,1748293840945,-420.0,0.00032876,2]
[362440338,1748293840954,-420.0,0.00032876,2]
[362440339,1748293840964,-420.0,0.00032876,2]
[362440340,1748293840974,-429.30462305,0.00032876,2]
[362440341,1748293840983,-420.0,0.00032876,2]
[362440342,1748293840992,-420.0,0.00032876,2]
[362440343,1748293841001,-420.0,0.00032876,2]
[362440344,1748293841010,-422.44391781,0.00032876,2]
[362440345,1748293841020,-459.21783628,0.00032876,2]
[362440346,1748293841029,-420.0,0.00032876,2]
[362440347,1748293841039,-420.0,0.00032876,2]
[362440348,1748293841049,-420.0,0.00032876,2]
[362440349,1748293841059,-420.0,0.00032876,2]
[362440350,1748293841068,-424.00875348,0.00032876,2]
[362440351,1748293841077,-399.70679797,0.00032876,2]
[362440352,1748293841087,-420.0,0.00032876,2]
[362440353,1748293841096,-420.0,0.00032876,2]
[362440354,1748293841106,-420.0,0.00032876,2]
[362440355,1748293841115,-420.0,0.00032876,2]
[362440356,1748293841124,-420.0,0.00032876,2]
[362440357,1748293841134,-282.39701772,0.00032876,2]
[362440358,1748293841143,-420.0,0.00032876,2]
[362440359,1748293841153,-420.0,0.00032876,2]
[362440360,1748293841163,-420.0,0.00032876,2]
[362440361,1748293841172,-420.0,0.00032876,2]
[362440362,1748293841182,-420.0,0.00032876,2]
[362440363,1748293841191,-420.0,0.00032876,2]
[362440364,1748293841201,-420.0,0.00032876,2]
[362440365,1748293841210,-424.60277906,0.00032876,2]
[362440366,1748293841220,-420.0,0.00032876,2]
[362440367,1748293841230,-420.0,0.00032876,2]
[362440368,1748293841239,-420.0,0.00032876,2]
[362440369,1748293841248,-420.0,0.00032876,2]
[362440370,1748293841258,-420.0,0.00032876,2]
[362440371,1748293841267,-420.0,0.00032876,2]
[362440372,1748293841277,-420.0,0.00032876,2]
[362440373,1748293841287,-420.0,0.00032876,2]
[362440374,1748293841296,-420.0,0.00032876,2]
[362440375,1748293841305,-420.0,0.00032876,2]
[362440376,1748293841314,-420.0,0.00032876,2]
[362440377,1748293841324,-420.0,0.00032876,2]
[362440378,1748293841334,-420.0,0.00032876,2]
[362440379,1748293841344,-420.0,0.00032876,2]
[362440380,1748293841353,-420.0,0.00032876,2]
[362440381,1748293841363,-420.0,0.00032876,2]
[362440382,1748293841372,-420.0,0.00032876,2]
[362440383,1748293841382,-152.857036,0.00032876,7]
[362440384,1748293841393,-420.0,0.00032876,2]
[362440385,1748293841403,-420.0,0.00032876,2]
[362440386,1748293841413,-343.49367567,0.00032876,2]
[362440387,1748293841423,-500.0,0.00032876,2]
[362440388,1748293841432,-500.0,0.00032876,2]
[362440389,1748293841442,-500.0,0.00032876,2]
[362440390,1748293841451,-500.0,0.00032876,2]
[362440391,1748293841461,-420.0,0.00032876,2]
[362440392,1748293841470,-420.0,0.00032876,2]
[362440393,1748293841481,-420.0,0.00032876,2]
[362440394,1748293841491,-420.0,0.00032876,2]
[362440395,1748293841501,-420.0,0.00032876,2]
[362440396,1748293841511,-420.0,0.00032876,2]
[362440397,1748293841520,-420.0,0.00032876,2]
[362440398,1748293841530,-420.0,0.00032876,2]
[362440399,1748293841540,-423.18136327,0.00032876,2]
[362440400,1748293841549,-420.0,0.00032876,2]
[362440401,1748293841558,-2260.91,0.00032876,2]
[362440402,1748293841568,-420.0,0.00032876,2]
[362440403,1748293841578,-424.70896193,0.00032876,2]
[362440404,1748293841587,-420.0,0.00032876,2]
[362440405,1748293841596,-420.0,0.00032876,2]
[362440406,1748293841606,-420.0,0.00032876,2]
[362440407,1748293841615,-420.0,0.00032876,2]
[362440408,1748293841625,-420.0,0.00032876,2]
[362440409,1748293841634,-420.0,0.00032876,2]
[362440410,1748293841644,-420.0,0.00032876,2]
[362440411,1748293841653,-420.0,0.00032876,2]
[362440412,1748293841662,-420.0,0.00032876,2]
[362440413,1748293841672,-420.0,0.00032876,2]
[362440414,1748293841682,-420.0,0.00032876,2]
[362440415,1748293841691,-420.0,0.00032876,2]
[362440416,1748293841700,-420.0,0.00032876,2]
[362440417,1748293841710,-420.0,0.00032876,2]
[362440418,1748293841720,-420.0,0.00032876,2]
[362440419,1748293841736,-420.0,0.00032876,2]
[362440420,1748293841746,-420.0,0.00032876,2]
[362440421,1748293841756,-420.0,0.00032876,2]
[362440422,1748293841767,-420.0,0.00032876,2]
[362440423,1748293841777,-420.0,0.00032876,2]
[362440424,1748293841787,-2112.41,0.00032876,2]
[362440425,1748293841796,-420.0,0.00032876,2]
[362440426,1748293841808,-420.0,0.00032876,2]
[362440428,1748293841818,-420.0,0.00032876,2]
[362440429,1748293841829,-420.0,0.00032876,2]
[362440430,1748293841839,-420.0,0.00032876,2]
[362440431,1748293841849,-420.0,0.00032876,2]
[362440432,1748293841862,-420.0,0.00032876,2]
[362440433,1748293841872,-420.0,0.00032876,2]
[362440434,1748293841884,-420.0,0.00032876,2]
[362440435,1748293841896,-420.0,0.00032876,2]
[362440436,1748293841907,-2376.06,0.00032876,2]
[362440437,1748293841918,-420.0,0.00032876,2]
[362440438,1748293841928,-420.0,0.00032876,2]
[362440439,1748293841938,-420.0,0.00032876,2]
[362440440,1748293841947,-420.0,0.00032876,2]
[362440441,1748293841958,-420.0,0.00032876,2]
[362440442,1748293841968,-151.0,0.00032876,7]
[362440443,1748293841978,-151.0,0.00032876,7]
[362440444,1748293841987,-151.0,0.00032876,7]
[362440445,1748293841997,-151.0,0.00032876,7]
[362440446,1748293842006,-270.235288,0.00032876,7]
[362440447,1748293842016,-420.0,0.00032876,2]
[362440448,1748293842027,-420.0,0.00032876,2]
[362440449,1748293842038,-420.0,0.00032876,2]
[362440450,1748293842048,-364.97852943,0.00032876,2]
[362440451,1748293842057,-420.0,0.00032876,2]
[362440452,1748293842067,-420.0,0.00032876,2]
[362440453,1748293842076,-420.97119509,0.00032876,2]
[362440454,1748293842086,-420.0,0.00032876,2]
[362440455,1748293842097,-420.0,0.00032876,2]
[362440456,1748293842106,-420.0,0.00032876,2]
[362440457,1748293842306,-420.0,0.00032876,2]
[362440459,1748293842320,-420.0,0.00032876,2]
[362440460,1748293842329,-420.0,0.00032876,2]
[362440461,1748293842339,-420.0,0.00032876,2]
[362440462,1748293842349,-202.04373641,0.00032876,2]
[362440463,1748293842358,-2952.52,0.00032876,2]
[362440464,1748293842368,-3233.15,0.00032876,2]
[362440465,1748293842377,-420.0,0.00032876,2]
[362440466,1748293842387,-420.0,0.00032876,2]
[362440467,1748293842396,-550.200189,0.00032876,2]
[362440468,1748293842406,-244.16987,0.00032876,7]
[362440469,1748293842415,-420.0,0.00032876,2]
[362440470,1748293842426,-420.0,0.00032876,2]
[362440471,1748293842437,-420.0,0.00032876,2]
[362440472,1748293842447,-151.0,0.00032876,7]
[362440473,1748293842456,-420.0,0.00032876,2]
[362440474,1748293842466,-423.57438146,0.00032876,2]
[362440475,1748293842476,-420.0,0.00032876,2]
[362440477,1748293842486,-420.0,0.00032876,2]
[362440478,1748293842495,-151.428329,0.00032876,7]
[362440479,1748293842505,-420.0,0.00032876,2]
[362440480,1748293842514,-2373.32,0.00032876,2]
[362440481,1748293842523,-588.0,0.00032876,2]
[362440482,1748293842533,-420.0,0.00032876,2]
[362440483,1748293842542,-420.0,0.00032876,2]
[362440484,1748293842552,-420.0,0.00032876,2]
[362440485,1748293842562,-420.0,0.00032876,2]
[362440486,1748293842571,-420.0,0.00032876,2]
[362440487,1748293842580,-420.0,0.00032876,2]
[362440488,1748293842590,-422.61117688,0.00032876,2]
[362440489,1748293842599,-420.0,0.00032876,2]
[362440490,1748293842610,-420.0,0.00032876,2]
[362440491,1748293842619,-420.0,0.00032876,2]
[362440492,1748293842628,-420.0,0.00032876,2]
[362440493,1748293842638,-420.0,0.00032876,2]
[362440494,1748293842647,-423.29332349,0.00032876,2]
[362440495,1748293842657,-420.0,0.00032876,2]
[362440496,1748293842668,-420.0,0.00032876,2]
[362440497,1748293842678,-420.0,0.00032876,2]
[362440498,1748293842687,-420.0,0.00032876,2]
[362440499,1748293842697,-384.64456124,0.00032876,2]
[362440500,1748293842710,-420.0,0.00032876,2]
[362440501,1748293842720,-420.0,0.00032876,2]
[362440502,1748293842735,-286.96612151,0.00032876,2]
[362440503,1748293842745,-428.67980247,0.00032876,2]
[362440504,1748293842756,-257.875475,0.00032876,2]
[362440505,1748293842765,-420.0,0.00032876,2]
[362440506,1748293842775,-420.0,0.00032876,2]
[362440507,1748293842784,-420.0,0.00032876,2]
[362440508,1748293842794,-420.0,0.00032876,2]
[362440509,1748293842804,-421.03122347,0.00032876,2]
[362440510,1748293842813,-420.0,0.00032876,2]
[362440511,1748293842823,-420.0,0.00032876,2]
[362440512,1748293842835,-420.0,0.00032876,2]
[362440513,1748293842844,-420.0,0.00032876,2]
[362440514,1748293842854,-420.0,0.00032876,2]
[362440515,1748293842863,-420.0,0.00032876,2]
[362440516,1748293842872,-420.0,0.00032876,2]
[362440517,1748293842882,-420.0,0.00032876,2]
[362440518,1748293842891,-420.0,0.00032876,2]
[362440519,1748293842900,-420.0,0.00032876,2]
[362440520,1748293842910,-420.0,0.00032876,2]
[362440521,1748293842919,-420.0,0.00032876,2]
[362440522,1748293842929,-420.0,0.00032876,2]
[362440523,1748293842939,-420.0,0.00032876,2]
[362440524,1748293842948,-421.2854905,0.00032876,2]
[362440525,1748293842957,-420.0,0.00032876,2]
[362440526,1748293842967,-420.0,0.00032876,2]
[362440527,1748293842976,-420.0,0.00032876,2]
[362440528,1748293842985,-420.0,0.00032876,2]
[362440529,1748293842994,-171.065218,0.00032876,2]
[362440530,1748293843003,-420.0,0.00032876,2]
[362440531,1748293843013,-420.0,0.00032876,2]
[362440532,1748293843024,-421.20135633,0.00032876,2]
[362440533,1748293843035,-151.0,0.00032876,7]
[362440534,1748293843045,-151.0,0.00032876,7]
[362440535,1748293843055,-151.0,0.00032876,7]
[362440536,1748293843064,-151.0,0.00032876,7]
[362440537,1748293843074,-420.0,0.00032876,2]
[362440538,1748293843083,-151.0,0.00032876,7]
[362440539,1748293843093,-420.0,0.00032876,2]
[362440540,1748293843102,-420.0,0.00032876,2]
[362440541,1748293843112,-549.67575482,0.00032876,2]
[362440542,1748293843121,-420.0,0.00032876,2]
[362440543,1748293843130,-420.0,0.00032876,2]
[362440544,1748293843139,-1502.736191,0.00032876,2]
[362440545,1748293843148,-466.61953675,0.00032876,2]
[362440546,1748293843157,-420.0,0.00032876,2]
[362440547,1748293843167,-420.0,0.00032876,2]
[362440548,1748293843175,-159.18382265,0.00032876,2]
[362440549,1748293843185,-420.0,0.00032876,2]
[362440550,1748293843194,-420.0,0.00032876,2]
[362440551,1748293843203,-420.0,0.00032876,2]
[362440552,1748293843212,-420.0,0.00032876,2]
[362440553,1748293843221,-420.0,0.00032876,2]
[362440554,1748293843231,-420.0,0.00032876,2]
[362440555,1748293843240,-423.68038599,0.00032876,2]
[362440556,1748293843249,-420.0,0.00032876,2]
[362440557,1748293843259,-420.0,0.00032876,2]
[362440558,1748293843268,-420.0,0.00032876,2]
[362440559,1748293843280,-420.0,0.00032876,2]
[362440560,1748293843291,-448.06021558,0.00032876,2]
[362440561,1748293843300,-420.0,0.00032876,2]
[362440562,1748293843311,-420.0,0.00032876,2]
[362440563,1748293843321,-420.0,0.00032876,2]
[362440564,1748293843330,-3697.97,0.00032876,2]
[362440565,1748293843340,-449.18620554,0.00032876,2]
[362440566,1748293843350,-420.0,0.00032876,2]
[362440567,1748293843360,-420.0,0.00032876,2]
[362440568,1748293843370,-420.0,0.00032876,2]
[362440569,1748293843379,-420.0,0.00032876,2]
[362440570,1748293843388,-420.0,0.00032876,2]
[362440571,1748293843398,-342.1367752,0.00032876,2]
[362440572,1748293843407,-420.0,0.00032876,2]
[362440573,1748293843416,-420.0,0.00032876,2]
[362440574,1748293843425,-420.0,0.00032876,2]
[362440575,1748293843435,-420.0,0.00032876,2]
[362440576,1748293843444,-382.37141298,0.00032876,2]
[362440577,1748293843454,-420.0,0.00032876,2]
[362440578,1748293843463,-420.0,0.00032876,2]
[362440579,1748293843473,-420.0,0.00032876,2]
[362440580,1748293843482,-420.0,0.00032876,2]
[362440581,1748293843493,-420.0,0.00032876,2]
[362440582,1748293843502,-420.0,0.00032876,2]
[362440583,1748293843512,-420.0,0.00032876,2]
[362440584,1748293843522,-480.0,0.00032876,2]
[362440585,1748293843531,-420.0,0.00032876,2]
[362440586,1748293843541,-385.8596092,0.00032876,2]
[362440587,1748293843550,-420.0,0.00032876,2]
[362440588,1748293843560,-425.17418824,0.00032876,2]
[362440589,1748293843569,-420.0,0.00032876,2]
[362440590,1748293843578,-420.0,0.00032876,2]
[362440591,1748293843588,-420.0,0.00032876,2]
[362440592,1748293843597,-420.0,0.00032876,2]
[362440593,1748293843607,-420.0,0.00032876,2]
[362440594,1748293843616,-420.0,0.00032876,2]
[362440595,1748293843626,-420.0,0.00032876,2]
[362440596,1748293843635,-420.0,0.00032876,2]
[362440597,1748293843644,-420.0,0.00032876,2]
[362440598,1748293843653,-420.0,0.00032876,2]
[362440599,1748293843663,-420.0,0.00032876,2]
[362440600,1748293843672,-150.0,0.00032876,2]
[362440601,1748293843681,-420.0,0.00032876,2]
[362440602,1748293843691,-421.6230091,0.00032876,2]
[362440603,1748293843701,-476.29,0.00032876,2]
[362440604,1748293843711,-265.74,0.00032876,2]
[362440605,1748293843723,-248.91414265,0.00032876,2]
[362440606,1748293843736,-420.0,0.00032876,2]
[362440607,1748293843747,-420.0,0.00032876,2]
[362440608,1748293843759,-402.42404384,0.00032876,2]
[362440609,1748293843768,-420.0,0.00032876,2]
[362440610,1748293843778,-420.0,0.00032876,2]
[362440611,1748293843787,-420.0,0.00032876,2]
[362440612,1748293843797,-421.93271945,0.00032876,2]
[362440613,1748293843808,-420.0,0.00032876,2]
[362440614,1748293843818,-423.85837692,0.00032876,2]
[362440615,1748293843827,-420.0,0.00032876,2]
[362440616,1748293843837,-420.0,0.00032876,2]
[362440617,1748293843847,-420.0,0.00032876,2]
[362440618,1748293843856,-420.0,0.00032876,2]